[Event "58th Akiba Rubinstein D 2022"]
[Site "Polanica-Zdroj"]
[Date "2022.08.16"]
[Round "4.4"]
[White "Lewandrowski, Tomasz"]
[Black "Litwin, Tomasz"]
[Result "1-0"]
[ECO "B06"]
[WhiteElo "1902"]
[BlackElo "1580"]
[Annotator "NA RC"]
[PlyCount "22"]
[EventDate "2022.08.13"]
[EventCountry "POL"]
[SourceTitle "playchess.com"]
[Source "ChessBase"]
[SourceQuality "1"]
[TimeControl "40/5400+30:1800+30"]

1. e4 d6 2. d4 g6 3. Nc3 Bg7 4. Be3 a6 5. h4 h6 6. Qd2 b5 $14 7. a4 b4 8. Nd1 a5 9. Bc4 e6 10. Ne2 Ne7 11. c3 Ba6 1-0

[Event "58th Akiba Rubinstein D 2022"]
[Site "Polanica-Zdroj"]
[Date "2022.08.16"]
[Round "4.5"]
[White "Kraczek, Cezary"]
[Black "Owoc, Jakub"]
[Result "1-0"]
[ECO "D02"]
[WhiteElo "1657"]
[BlackElo "1756"]
[Annotator "NA RC"]
[PlyCount "51"]
[EventDate "2022.08.13"]
[EventCountry "POL"]
[SourceTitle "playchess.com"]
[Source "ChessBase"]
[SourceQuality "1"]
[TimeControl "40/5400+30:1800+30"]

1. d4 d5 2. Nf3 {[%emt 0:03:02]} Nf6 {[%emt 0:00:18]} 3. Nc3 a6 4. Bf4 e6 5. e3 c5 6. Be2 Nc6 7. O-O b5 8. Bxb5 axb5 9. Nxb5 Ra7 10. Nxa7 Nxa7 11. Ne5 Be7 12. dxc5 {[%emt 0:34:03]} Bxc5 {[%emt 0:33:38]} 13. c4 {[%emt 0:03:35]} O-O {[%emt 0:00:14]} 14. Rc1 {[%emt 0:02:54]} Qb6 {[%emt 0:04:26]} 15. Nd3 {[%emt 0:03:03]} dxc4 {[%emt 0:06:49]} 16. Nxc5 {[%emt 0:00:49]} Qxc5 {[%emt 0:00:08]} 17. Bd6 {[%emt 0:00:35]} Qd5 {[%emt 0:00:06]} 18. Qxd5 {[%emt 0:00:48]} exd5 {[%emt 0:00:05]} 19. Bxf8 {[%emt 0:00:06]} Kxf8 {[%emt 0:00:04]} 20. Rfd1 {[%emt 0:01:51]} Bf5 {[%emt 0:00:10]} 21. b3 {[%emt 0:01:44]} Bd3 {[%emt 0:00:08]} 22. f3 {[%emt 0:01:48]} Nc6 {[%emt 0:02:13]} 23. Kf2 {[%emt 0:03:02]} Nb4 {[%emt 0:02:01]} 24. Rd2 {[%emt 0:03:15]} Ke7 {[%emt 0:01:50]} 25. a3 {[%emt 0:01:37]} Nc6 {[%emt 0:00:04]} 26. Rxd3 {[%emt 0:00:58]} 1-0

[Event "58th Akiba Rubinstein D 2022"]
[Site "Polanica-Zdroj"]
[Date "2022.08.16"]
[Round "4.6"]
[White "Gbiorczyk, Mikolaj"]
[Black "Marek, Grzegorz"]
[Result "1/2-1/2"]
[ECO "A50"]
[WhiteElo "1781"]
[BlackElo "1478"]
[Annotator "NA RC"]
[PlyCount "59"]
[EventDate "2022.08.13"]
[EventCountry "POL"]
[SourceTitle "playchess.com"]
[Source "ChessBase"]
[SourceQuality "1"]
[TimeControl "40/5400+30:1800+30"]

1. d4 {[%emt 0:00:03]} Nf6 {[%emt 0:00:10]} 2. c4 {[%emt 0:00:08]} b6 {[%emt 0:00:11]} 3. Nc3 {[%emt 0:02:08]} Bb7 {[%emt 0:00:14]} 4. Qc2 {[%emt 0:02:13]} d5 {[%emt 0:00:32]} 5. Nf3 {[%emt 0:05:12]} e6 {[%emt 0:01:06]} 6. Bg5 {[%emt 0:04:24]} Be7 {[%emt 0:04:45]} 7. e3 {[%emt 0:03:12]} O-O {[%emt 0:01:58]} 8. Be2 {[%emt 0:04:39]} Nbd7 {[%emt 0:13:22]} 9. O-O {[%emt 0:03:02]} Rc8 {[%emt 0:13:28]} 10. Qa4 {[%emt 0:16:22]} a5 {[%emt 0:18:12]} 11. Rac1 {[%emt 0:11:22]} c5 {[%emt 0:05:19]} 12. Ne5 {[%emt 0:11:28]} dxc4 {[%emt 0:12:06]} 13. Rfd1 {[%emt 0:07:04]} Nxe5 {[%emt 0:05:42]} 14. dxe5 {[%emt 0:07:44]} Nd5 {[%emt 0:00:07]} 15. Bf4 {[%emt 0:02:17]} Nxc3 {[%emt 0:03:24]} 16. Rxc3 {[%emt 0:00:48]} Bc6 {[%emt 0:00:10]} 17. Rxd8 {[%emt 0:07:39]} Bxa4 {[%emt 0:00:06]} 18. Rxc8 {[%emt 0:00:31]} Rxc8 {[%emt 0:00:07]} 19. Bxc4 {[%emt 0:01:00]} Rd8 {[%emt 0:08:06]} 20. Rd3 {[%emt 0:01:15]} Bc6 {[%emt 0:00:45]} 21. f3 {[%emt 0:02:20]} b5 {[%emt 0:00:28]} 22. Rxd8+ {[%emt 0:00:05]} Bxd8 {[%emt 0:00:04]} 23. Be2 {[%emt 0:01:08]} Bb6 {[%emt 0:02:50]} 24. Kf1 {[%emt 0:00:56]} Kf8 {[%emt 0:05:25]} 25. Ke1 {[%emt 0:00:51]} h6 {[%emt 0:01:29]} 26. e4 {[%emt 0:00:26]} c4 {[%emt 0:00:35]} 27. Kd2 {[%emt 0:00:35]} Bd4 {[%emt 0:00:46]} 28. Kc2 {[%emt 0:01:31]} a4 {[%emt 0:01:00]} 29. h3 {[%emt 0:01:55]} Ke7 {[%emt 0:01:31]} 30. g4 1/2-1/2

[Event "58th Akiba Rubinstein D 2022"]
[Site "Polanica-Zdroj"]
[Date "2022.08.16"]
[Round "4.7"]
[White "Urbanski, Wojciech"]
[Black "Liskiewicz, Jakub"]
[Result "0-1"]
[ECO "B08"]
[WhiteElo "1632"]
[BlackElo "1910"]
[Annotator "NA RC"]
[PlyCount "92"]
[EventDate "2022.08.13"]
[EventCountry "POL"]
[SourceTitle "playchess.com"]
[Source "ChessBase"]
[SourceQuality "1"]
[TimeControl "40/5400+30:1800+30"]

1. e4 d6 2. d4 Nf6 3. Nc3 g6 4. Nf3 Bg7 5. Be2 O-O 6. O-O Bg4 7. Be3 Nc6 8. Nd2 Bxe2 9. Qxe2 e5 10. d5 Ne7 11. Rad1 Nh5 12. f4 exf4 13. Bxf4 Nxf4 14. Rxf4 Nc8 15. Rdf1 Nb6 16. Qd3 Nd7 17. Nc4 Qe7 18. Nb5 (18. b4 $17) 18... Nc5 19. Qd1 a6 20. Nc3 b5 ({Black should try} 20... Rae8 $17 21. Nd2 Qd7) 21. Na5 $1 Be5 22. Nc6 Qg5 23. R4f3 Bxc3 24. Rxc3 Nxe4 25. Ra3 $17 Rae8 26. Qd4 Nc5 27. b4 Nd7 28. Rxa6 Re2 29. g3 Rfe8 30. Ra7 Rd2 31. Qc3 Nb6 32. Rxc7 Ree2 33. Ne7+ Qxe7 34. Qxd2 Qe4 35. Qxe2 Qxe2 36. Rfxf7 Qd1+ 37. Kf2 Qd4+ 38. Kf1 Nxd5 39. Rb7 Qd1+ 40. Kg2 Ne3+ 41. Kf2 Ng4+ 42. Kg2 Qd5+ 43. Kh3 Nf2+ 44. Rxf2 Qxb7 45. c3 Qc8+ 46. Kg2 Qxc3 0-1

[Event "58th Akiba Rubinstein D 2022"]
[Site "Polanica-Zdroj"]
[Date "2022.08.16"]
[Round "4.8"]
[White "Bartosik, Dawid"]
[Black "Kryzia, Wiktor"]
[Result "0-1"]
[ECO "B32"]
[WhiteElo "1443"]
[BlackElo "1764"]
[Annotator "NA RC"]
[PlyCount "90"]
[EventDate "2022.08.13"]
[EventCountry "POL"]
[SourceTitle "playchess.com"]
[Source "ChessBase"]
[SourceQuality "1"]
[TimeControl "40/5400+30:1800+30"]

1. e4 {[%emt 0:00:03]} c5 {[%emt 0:01:12]} 2. Nf3 {[%emt 0:00:06]} Nc6 {[%emt 0:00:05]} 3. d4 {[%emt 0:00:08]} cxd4 {[%emt 0:00:06]} 4. Nxd4 {[%emt 0:00:04]} g6 {[%emt 0:00:07]} 5. g3 {[%emt 0:00:15]} Bg7 {[%emt 0:00:27]} 6. Be3 {[%emt 0:00:08]} Nf6 {[%emt 0:02:51]} 7. Bg2 {[%emt 0:00:27]} d5 {[%emt 0:02:48]} 8. Nxc6 {[%emt 0:04:21]} bxc6 {[%emt 0:00:08]} 9. O-O {[%emt 0:08:32]} Nxe4 {[%emt 0:07:46]} 10. Bd4 {[%emt 0:00:35]} e5 {[%emt 0:00:19]} 11. Be3 {[%emt 0:03:45]} Nd6 {[%emt 0:06:53]} 12. c3 {[%emt 0:14:46]} O-O {[%emt 0:02:44]} 13. Nd2 {[%emt 0:02:52]} a5 {[%emt 0:04:36]} 14. Bc5 {[%emt 0:09:51]} Re8 {[%emt 0:04:37]} 15. Bxd6 {[%emt 0:00:50]} Qxd6 {[%emt 0:00:10]} 16. Re1 {[%emt 0:04:20]} Rb8 {[%emt 0:05:15]} 17. Rb1 {[%emt 0:03:05]} Bf5 {[%emt 0:01:27]} 18. Ra1 {[%emt 0:00:22]} Qc5 {[%emt 0:04:03]} 19. b3 {[%emt 0:04:50]} e4 {[%emt 0:02:51]} 20. Rc1 {[%emt 0:05:18]} e3 {[%emt 0:05:14]} 21. fxe3 {[%emt 0:00:26]} Rxe3 {[%emt 0:00:09]} 22. Rxe3 {[%emt 0:02:08]} Qxe3+ {[%emt 0:00:02]} 23. Kh1 {[%emt 0:00:18]} Bxc3 {[%emt 0:02:09]} 24. Nf1 {[%emt 0:01:47]} Qc5 {[%emt 0:17:53]} 25. Qf3 {[%emt 0:15:38]} d4 {[%emt 0:00:12]} 26. Nd2 {[%emt 0:01:44]} Qa3 {[%emt 0:02:28]} 27. Rd1 {[%emt 0:03:03]} Bc2 {[%emt 0:02:37]} 28. Qf4 {[%emt 0:02:57]} Qb4 {[%emt 0:10:42]} 29. Rf1 {[%emt 0:01:48]} Rf8 {[%emt 0:00:24]} 30. Ne4 {[%emt 0:02:03]} d3 {[%emt 0:02:43]} 31. a3 {[%emt 0:02:02]} Qd4 {[%emt 0:05:20]} 32. Qh6 {[%emt 0:01:48]} Qg7 {[%emt 0:00:12]} 33. Qe3 {[%emt 0:01:54]} Bd4 {[%emt 0:02:16]} 34. Qd2 {[%emt 0:00:29]} f5 {[%emt 0:00:42]} 35. Ng5 {[%emt 0:01:24]} Qf6 {[%emt 0:01:37]} 36. Ne4 {[%emt 0:00:55]} Qe7 {[%emt 0:01:45]} 37. Nc3 {[%emt 0:01:30]} Be3 {[%emt 0:00:23]} 38. Qe1 {[%emt 0:01:11]} d2 {[%emt 0:01:22]} 39. Qe2 {[%emt 0:00:24]} Bxb3 {[%emt 0:00:23]} 40. Bxc6 {[%emt 0:00:31]} Rc8 {[%emt 0:00:18]} 41. Nd5 {[%emt 0:31:35]} Qe4+ {[%emt 0:30:21]} 42. Rf3 {[%emt 0:00:00]} Bxd5 {[%emt 0:00:00]} 43. Bxd5+ {[%emt 0:00:05]} Qxd5 {[%emt 0:00:00]} 44. Qxe3 {[%emt 0:00:45]} d1=Q+ {[%emt 0:00:00]} 45. Kg2 {[%emt 0:00:09]} Q1xf3+ {[%emt 0:00:00]} 0-1

[Event "58th Akiba Rubinstein D 2022"]
[Site "Polanica-Zdroj"]
[Date "2022.08.16"]
[Round "4.9"]
[White "Markiewicz, Czeslaw"]
[Black "Sleczka, Krzysztof"]
[Result "1/2-1/2"]
[ECO "C89"]
[WhiteElo "1750"]
[BlackElo "1443"]
[Annotator "NA RC"]
[PlyCount "74"]
[EventDate "2022.08.13"]
[EventCountry "POL"]
[SourceTitle "playchess.com"]
[Source "ChessBase"]
[SourceQuality "1"]
[TimeControl "40/5400+30:1800+30"]

1. e4 {[%emt 0:00:05]} e5 {[%emt 0:00:07]} 2. Nf3 {[%emt 0:00:09]} Nc6 {[%emt 0:00:05]} 3. Bb5 {[%emt 0:00:09]} a6 {[%emt 0:00:23]} 4. Ba4 {[%emt 0:00:11]} Nf6 {[%emt 0:00:04]} 5. O-O {[%emt 0:00:18]} b5 {[%emt 0:00:53]} 6. Bb3 {[%emt 0:00:10]} Be7 {[%emt 0:00:02]} 7. Re1 {[%emt 0:00:21]} O-O {[%emt 0:00:04]} 8. c3 {[%emt 0:00:15]} d5 {[%emt 0:00:19]} 9. exd5 {[%emt 0:01:23]} Nxd5 {[%emt 0:00:09]} 10. d3 {[%emt 0:01:05]} Bg4 {[%emt 0:02:58]} 11. Be3 {[%emt 0:03:34]} Kh8 {[%emt 0:12:13]} 12. a4 {[%emt 0:01:35]} Rb8 {[%emt 0:05:07]} 13. axb5 {[%emt 0:02:25]} axb5 {[%emt 0:00:02]} 14. Ra6 {[%emt 0:01:00]} Qd7 {[%emt 0:11:35]} 15. Nbd2 {[%emt 0:08:47]} Ra8 {[%emt 0:06:44]} 16. Rxa8 {[%emt 0:02:07]} Rxa8 {[%emt 0:00:01]} 17. h3 {[%emt 0:02:32]} Bf5 {[%emt 0:04:01]} 18. Ne4 {[%emt 0:00:43]} Nxe3 {[%emt 0:06:15]} 19. Rxe3 {[%emt 0:01:24]} f6 {[%emt 0:04:22]} 20. Nh4 {[%emt 0:02:18]} Be6 {[%emt 0:07:18]} 21. Bxe6 {[%emt 0:00:51]} Qxe6 {[%emt 0:00:03]} 22. Qh5 {[%emt 0:01:17]} Bd6 {[%emt 0:03:40]} 23. Rg3 {[%emt 0:11:53]} Ne7 {[%emt 0:02:15]} 24. Nxd6 {[%emt 0:03:32]} cxd6 {[%emt 0:00:58]} 25. Qf3 {[%emt 0:04:52]} d5 {[%emt 0:01:53]} 26. Qg4 {[%emt 0:02:37]} Qxg4 {[%emt 0:02:33]} 27. hxg4 {[%emt 0:01:06]} Ra1+ {[%emt 0:00:44]} 28. Kh2 {[%emt 0:00:08]} Ra2 {[%emt 0:00:17]} 29. Re3 {[%emt 0:05:00]} Rxb2 {[%emt 0:07:42]} 30. f4 {[%emt 0:00:35]} Nc6 {[%emt 0:01:44]} 31. Nf3 {[%emt 0:01:18]} Kg8 {[%emt 0:01:41]} 32. fxe5 {[%emt 0:00:24]} fxe5 {[%emt 0:00:01]} 33. Nxe5 {[%emt 0:00:22]} Nxe5 {[%emt 0:00:02]} 34. Rxe5 {[%emt 0:00:10]} Rb3 {[%emt 0:00:09]} 35. Rxd5 {[%emt 0:00:32]} Rxc3 {[%emt 0:00:02]} 36. Rxb5 {[%emt 0:01:44]} Rxd3 {[%emt 0:00:02]} 37. Rb4 Rd4 1/2-1/2

[Event "58th Akiba Rubinstein D 2022"]
[Site "Polanica-Zdroj"]
[Date "2022.08.16"]
[Round "4.10"]
[White "Misiek, Stanislaw"]
[Black "Penza, Denis"]
[Result "0-1"]
[ECO "D17"]
[WhiteElo "1427"]
[BlackElo "1836"]
[Annotator "NA RC"]
[PlyCount "44"]
[EventDate "2022.08.13"]
[EventCountry "POL"]
[SourceTitle "playchess.com"]
[Source "ChessBase"]
[SourceQuality "1"]
[TimeControl "40/5400+30:1800+30"]

1. d4 {[%emt 0:00:05]} d5 {[%emt 0:00:07]} 2. Nf3 {[%emt 0:00:10]} Nf6 {[%emt 0:00:04]} 3. c4 {[%emt 0:00:10]} c6 {[%emt 0:00:03]} 4. Nc3 {[%emt 0:00:12]} dxc4 {[%emt 0:00:19]} 5. a4 {[%emt 0:00:25]} Bf5 {[%emt 0:00:15]} 6. Ne5 {[%emt 0:00:26]} e6 {[%emt 0:00:39]} 7. f3 {[%emt 0:03:05]} c5 {[%emt 0:01:08]} 8. e4 {[%emt 0:00:11]} cxd4 {[%emt 0:00:34]} 9. exf5 {[%emt 0:00:13]} Nc6 {[%emt 0:00:29]} 10. Nxc6 {[%emt 0:05:48]} bxc6 {[%emt 0:00:01] [#]} 11. Bxc4 $1 {[%emt 0:07:10]} dxc3 {[%emt 0:00:41]} 12. Qxd8+ {[%emt 0:00:33]} Rxd8 {[%emt 0:00:10]} 13. fxe6 {[%emt 0:01:31]} fxe6 {[%emt 0:00:07]} 14. bxc3 {[%emt 0:05:35]} Nd5 {[%emt 0:00:19]} 15. Bd2 {[%emt 0:07:41]} Bd6 {[%emt 0:01:00]} 16. O-O {[%emt 0:08:39]} Nb6 {[%emt 0:11:31]} 17. Bg5 {[%emt 0:05:05]} Bc5+ {[%emt 0:05:44]} 18. Kh1 {[%emt 0:00:09]} Nxc4 {[%emt 0:00:22]} 19. Bxd8 {[%emt 0:00:12]} Kxd8 {[%emt 0:00:15]} 20. Rab1 {[%emt 0:02:57]} Kc7 {[%emt 0:01:33]} 21. Rfe1 {[%emt 0:00:51]} Ne3 {[%emt 0:04:28]} 22. c4 {[%emt 0:05:15]} Rb8 $19 {[%emt 0:01:51]} 0-1

[Event "58th Akiba Rubinstein D 2022"]
[Site "Polanica-Zdroj"]
[Date "2022.08.16"]
[Round "4.11"]
[White "Galuszka, Kamil"]
[Black "Krygiel, Konrad"]
[Result "0-1"]
[ECO "C45"]
[WhiteElo "1976"]
[BlackElo "1603"]
[Annotator "NA RC"]
[PlyCount "65"]
[EventDate "2022.08.13"]
[EventCountry "POL"]
[SourceTitle "playchess.com"]
[Source "ChessBase"]
[SourceQuality "1"]
[TimeControl "40/5400+30:1800+30"]

1. e4 {[%emt 0:00:03]} e5 {[%emt 0:03:24]} 2. Nf3 {[%emt 0:05:41]} Nc6 {[%emt 0:00:01]} 3. d4 {[%emt 0:00:24]} exd4 {[%emt 0:00:01]} 4. Nxd4 {[%emt 0:00:08]} Bc5 {[%emt 0:00:05]} 5. Be3 {[%emt 0:00:04]} Qf6 {[%emt 0:00:04]} 6. c3 {[%emt 0:00:30]} Nge7 {[%emt 0:00:16]} 7. Bc4 {[%emt 0:01:41]} O-O {[%emt 0:00:11]} 8. O-O {[%emt 0:01:03]} Qg6 {[%emt 0:00:14]} 9. Nxc6 {[%emt 0:06:10]} Qxc6 {[%emt 0:00:32]} 10. Bxc5 {[%emt 0:00:16]} Qxc5 {[%emt 0:00:01]} 11. Nd2 {[%emt 0:00:06]} d5 {[%emt 0:14:29]} 12. exd5 {[%emt 0:06:50]} Nxd5 {[%emt 0:00:01]} 13. b4 {[%emt 0:00:09]} Qc6 {[%emt 0:00:12]} 14. Qb3 {[%emt 0:00:46]} Nf4 {[%emt 0:04:35]} 15. Nf3 {[%emt 0:04:59]} b5 {[%emt 0:01:10]} 16. Bxf7+ {[%emt 0:00:34]} Rxf7 {[%emt 0:00:01]} 17. Qxf7+ {[%emt 0:00:10]} Kxf7 {[%emt 0:00:14]} 18. Ne5+ {[%emt 0:00:04]} Kf6 {[%emt 0:12:50]} 19. Nxc6 {[%emt 0:00:09]} Bb7 {[%emt 0:00:01]} 20. Nd4 {[%emt 0:00:32]} Bxg2 {[%emt 0:15:31]} 21. Rfe1 {[%emt 0:00:41]} Bd5 {[%emt 0:01:03]} 22. Re3 {[%emt 0:04:15]} c6 {[%emt 0:05:49]} 23. Rae1 {[%emt 0:09:06]} a5 {[%emt 0:01:58]} 24. Re8 {[%emt 0:11:07]} Ra7 $18 {[%emt 0:10:58]} (24... Rxe8 25. Rxe8 axb4) 25. Rf8+ {[%emt 0:03:18]} Kg5 {[%emt 0:00:30]} 26. Re3 {[%emt 0:10:40]} Nh5 {[%emt 0:06:22]} 27. Re5+ {[%emt 0:10:14]} Kg6 28. f4 {[%emt 0:01:07]} h6 {[%emt 0:04:21]} 29. f5+ {[%emt 0:04:11]} Kh7 {[%emt 0:00:12]} 30. Ree8 {[%emt 0:00:29]} g5 {[%emt 0:00:49]} 31. Ne6 {[%emt 0:01:23]} Bxe6 {[%emt 0:02:41]} 32. fxe6 {[%emt 0:03:03]} Kg6 {[%emt 0:00:29]} 33. Rf7 {[%emt 0:06:21]} 0-1

[Event "58th Akiba Rubinstein D 2022"]
[Site "Polanica-Zdroj"]
[Date "2022.08.16"]
[Round "4.12"]
[White "Sola, Wojciech"]
[Black "Wilgosz, Jan"]
[Result "1-0"]
[ECO "E62"]
[WhiteElo "1780"]
[BlackElo "1597"]
[Annotator "NA RC"]
[PlyCount "119"]
[EventDate "2022.08.13"]
[EventCountry "POL"]
[SourceTitle "playchess.com"]
[Source "ChessBase"]
[SourceQuality "1"]
[TimeControl "40/5400+30:1800+30"]

1. c4 {[%emt 0:00:03]} Nf6 {[%emt 0:04:25]} 2. Nc3 {[%emt 0:00:10]} g6 {[%emt 0:00:54]} 3. d4 {[%emt 0:00:14]} Bg7 {[%emt 0:00:10]} 4. g3 {[%emt 0:01:09]} O-O {[%emt 0:00:14]} 5. Bg2 {[%emt 0:00:04]} d6 {[%emt 0:00:21]} 6. Nf3 {[%emt 0:01:17]} Nc6 {[%emt 0:00:34]} 7. O-O {[%emt 0:00:30]} e5 {[%emt 0:00:19]} 8. dxe5 {[%emt 0:03:41]} dxe5 {[%emt 0:01:03]} 9. Be3 {[%emt 0:01:44]} Be6 {[%emt 0:04:36]} 10. b3 {[%emt 0:01:32]} Qc8 {[%emt 0:10:21]} 11. Bc5 {[%emt 0:03:27]} Rd8 {[%emt 0:05:24]} 12. Qc1 {[%emt 0:03:06]} Bh3 {[%emt 0:04:47]} 13. Rd1 {[%emt 0:08:19]} Bxg2 {[%emt 0:07:44]} 14. Rxd8+ {[%emt 0:02:02]} Qxd8 {[%emt 0:00:56]} 15. Kxg2 {[%emt 0:00:10]} b6 {[%emt 0:03:14]} 16. Ba3 {[%emt 0:01:44]} e4 {[%emt 0:05:56]} 17. Ne1 {[%emt 0:02:24]} a5 {[%emt 0:09:22]} 18. Qd1 {[%emt 0:04:41]} Ng4 {[%emt 0:04:43]} 19. Rc1 {[%emt 0:13:06]} Qxd1 {[%emt 0:03:21]} 20. Nxd1 {[%emt 0:00:26]} a4 {[%emt 0:02:56]} 21. Nc2 {[%emt 0:06:01]} f5 {[%emt 0:02:44]} 22. h3 {[%emt 0:01:28]} Nf6 {[%emt 0:04:22]} 23. b4 {[%emt 0:06:06]} Bh6 {[%emt 0:03:06]} 24. Nde3 {[%emt 0:01:59]} Rd8 {[%emt 0:02:11]} 25. Bb2 {[%emt 0:05:43]} Nh5 {[%emt 0:07:52]} 26. Rd1 {[%emt 0:06:24]} Rxd1 {[%emt 0:01:21]} 27. Nxd1 {[%emt 0:00:13]} Bg7 {[%emt 0:02:30]} 28. Bxg7 {[%emt 0:01:19]} Nxg7 {[%emt 0:00:43]} 29. Nc3 {[%emt 0:00:40]} Ne5 {[%emt 0:00:53]} 30. Ne3 {[%emt 0:03:12]} Ne6 {[%emt 0:02:03]} 31. Nxa4 {[%emt 0:04:39]} f4 {[%emt 0:00:35]} 32. Nd5 {[%emt 0:03:44]} fxg3 {[%emt 0:01:15]} 33. Kxg3 {[%emt 0:02:16]} Nxc4 {[%emt 0:00:14]} 34. Nf6+ {[%emt 0:00:26]} Kf7 {[%emt 0:00:29]} 35. Nxe4 {[%emt 0:00:10]} Nd4 {[%emt 0:00:25]} 36. Nac3 {[%emt 0:00:09]} Nc2 {[%emt 0:00:51]} 37. b5 {[%emt 0:00:28]} N4a3 {[%emt 0:01:13]} 38. e3 {[%emt 0:00:36]} h6 {[%emt 0:00:58]} 39. Kf3 {[%emt 0:02:26]} Ke6 {[%emt 0:00:36]} 40. Ke2 {[%emt 0:01:05]} Nb4 {[%emt 0:00:38]} 41. Nd2 {[%emt 0:32:20]} Nd5 {[%emt 0:30:31]} 42. Ndb1 {[%emt 0:04:30]} Nxc3+ {[%emt 0:00:51]} 43. Nxc3 {[%emt 0:00:02]} Kd6 {[%emt 0:00:16]} 44. h4 {[%emt 0:00:47]} Kc5 {[%emt 0:00:28]} 45. Kd3 {[%emt 0:01:03]} Nxb5 {[%emt 0:00:47]} 46. Nxb5 {[%emt 0:00:34]} Kxb5 {[%emt 0:00:07]} 47. f4 {[%emt 0:00:06]} Kc5 48. a4 {[%emt 0:00:16]} Kd5 {[%emt 0:02:05]} 49. e4+ {[%emt 0:00:13]} Ke6 {[%emt 0:00:44]} 50. Kc4 {[%emt 0:01:47]} c5 {[%emt 0:01:06]} 51. a5 {[%emt 0:00:21]} bxa5 {[%emt 0:00:24]} 52. Kxc5 {[%emt 0:00:02]} Kf6 {[%emt 0:00:28]} 53. Kd6 {[%emt 0:01:22]} a4 {[%emt 0:00:20]} 54. e5+ {[%emt 0:00:02]} Kg7 {[%emt 0:01:01]} 55. e6 {[%emt 0:00:10]} a3 {[%emt 0:00:10]} 56. e7 {[%emt 0:00:10]} a2 {[%emt 0:00:11]} 57. e8=Q {[%emt 0:00:19]} a1=Q {[%emt 0:00:00]} 58. Qe5+ {[%emt 0:00:14]} Qxe5+ {[%emt 0:00:22]} 59. fxe5 {[%emt 0:00:22]} g5 {[%emt 0:00:52]} 60. e6 {[%emt 0:00:36]} 1-0

[Event "58th Akiba Rubinstein D 2022"]
[Site "Polanica-Zdroj"]
[Date "2022.08.16"]
[Round "4.13"]
[White "Wolska, Marta"]
[Black "Szczepanski, Krzysztof"]
[Result "0-1"]
[ECO "A40"]
[WhiteElo "1588"]
[BlackElo "1790"]
[Annotator "NA RC"]
[PlyCount "56"]
[EventDate "2022.08.13"]
[EventCountry "POL"]
[SourceTitle "playchess.com"]
[Source "ChessBase"]
[SourceQuality "1"]
[TimeControl "40/5400+30:1800+30"]

1. d4 {[%emt 0:00:02]} e6 {[%emt 0:02:21]} 2. c4 {[%emt 0:00:11]} Ne7 {[%emt 0:00:12]} 3. Nc3 {[%emt 0:04:25]} Ng6 {[%emt 0:00:16]} 4. e4 {[%emt 0:02:25]} Be7 {[%emt 0:00:21]} 5. Nf3 {[%emt 0:03:06]} d6 {[%emt 0:00:59]} 6. Bd3 {[%emt 0:05:15]} e5 {[%emt 0:00:37]} 7. O-O {[%emt 0:05:54]} O-O {[%emt 0:01:20]} 8. Qc2 {[%emt 0:01:18]} Nc6 {[%emt 0:01:18]} 9. dxe5 {[%emt 0:02:43]} Ncxe5 {[%emt 0:04:34]} 10. Nxe5 {[%emt 0:06:43]} dxe5 {[%emt 0:00:56]} 11. Rd1 {[%emt 0:00:11]} c6 {[%emt 0:01:22]} 12. a3 {[%emt 0:01:35]} Bg5 {[%emt 0:02:29]} 13. b4 {[%emt 0:07:19]} Qf6 {[%emt 0:03:15]} 14. Bf1 {[%emt 0:05:08]} Bxc1 {[%emt 0:02:42]} 15. Raxc1 {[%emt 0:00:15]} Nf4 {[%emt 0:02:24]} 16. Ne2 {[%emt 0:01:00]} Bg4 {[%emt 0:05:59]} 17. c5 {[%emt 0:04:00]} Bxe2 {[%emt 0:00:47]} 18. Bxe2 {[%emt 0:00:26]} Rad8 {[%emt 0:01:43]} 19. Bf1 {[%emt 0:03:27]} Ne6 {[%emt 0:00:08]} 20. a4 {[%emt 0:13:32]} a6 {[%emt 0:00:54]} 21. Qb2 {[%emt 0:01:13]} Nd4 {[%emt 0:01:06]} 22. b5 {[%emt 0:00:12]} axb5 {[%emt 0:01:26]} 23. axb5 {[%emt 0:00:04]} Rd7 {[%emt 0:03:54]} 24. b6 {[%emt 0:03:05]} Rfd8 {[%emt 0:00:20]} 25. Rd3 {[%emt 0:05:02]} g6 {[%emt 0:02:12]} 26. Ra3 {[%emt 0:00:22]} Ne6 {[%emt 0:06:03]} 27. Ra7 {[%emt 0:06:06]} Rd2 {[%emt 0:01:41]} 28. Rc2 {[%emt 0:00:46]} Qxf2+ {[%emt 0:00:21]} 0-1

[Event "58th Akiba Rubinstein D 2022"]
[Site "Polanica-Zdroj"]
[Date "2022.08.16"]
[Round "4.14"]
[White "Huchwajda, Katarzyna"]
[Black "Mareau, Timothe"]
[Result "0-1"]
[ECO "C00"]
[WhiteElo "1768"]
[BlackElo "1590"]
[Annotator "NA RC"]
[PlyCount "68"]
[EventDate "2022.08.13"]
[EventCountry "POL"]
[SourceTitle "playchess.com"]
[Source "ChessBase"]
[SourceQuality "1"]
[TimeControl "40/5400+30:1800+30"]

1. e4 {[%emt 0:00:02]} e6 {[%emt 0:00:07]} 2. Qe2 {[%emt 0:00:04]} d5 {[%emt 0:00:24]} 3. exd5 {[%emt 0:00:08]} Qxd5 {[%emt 0:00:10]} 4. Nc3 {[%emt 0:00:07]} Qd8 {[%emt 0:00:53]} 5. b3 {[%emt 0:00:15]} Nf6 {[%emt 0:01:54]} 6. Bb2 {[%emt 0:00:13]} Bc5 {[%emt 0:01:30]} 7. O-O-O {[%emt 0:02:12]} Qe7 {[%emt 0:01:17]} 8. Kb1 {[%emt 0:02:00]} Nc6 {[%emt 0:00:55]} 9. Nf3 {[%emt 0:05:17]} Nd4 {[%emt 0:02:11]} 10. Nxd4 {[%emt 0:02:34]} Bxd4 {[%emt 0:00:07]} 11. f4 {[%emt 0:03:43]} Bd7 {[%emt 0:09:38]} 12. g3 {[%emt 0:11:46]} Bc6 {[%emt 0:01:24]} 13. Bg2 {[%emt 0:00:31]} Bxg2 {[%emt 0:00:09]} 14. Qxg2 {[%emt 0:00:06]} O-O-O {[%emt 0:00:16]} 15. Rhe1 {[%emt 0:04:23]} Qc5 {[%emt 0:09:52]} 16. Qf3 {[%emt 0:07:10]} Qf5 {[%emt 0:05:33]} 17. Qg2 {[%emt 0:06:48]} Rd7 {[%emt 0:03:23]} 18. h3 {[%emt 0:02:56]} h5 {[%emt 0:01:53]} 19. Na4 {[%emt 0:06:47]} Rhd8 {[%emt 0:03:40]} 20. Bxd4 {[%emt 0:03:14]} Rxd4 {[%emt 0:00:09]} 21. Re5 {[%emt 0:01:30]} Qg6 {[%emt 0:01:56]} 22. Nc5 {[%emt 0:17:56]} Nd5 {[%emt 0:05:28]} 23. Kb2 {[%emt 0:08:54]} c6 {[%emt 0:11:51]} 24. Rg5 {[%emt 0:04:27]} Qf6 {[%emt 0:01:21]} 25. Re5 {[%emt 0:03:41]} Ne3 {[%emt 0:03:28]} 26. dxe3 {[%emt 0:00:49]} Rxd1 {[%emt 0:00:39]} 27. Ne4 {[%emt 0:00:35]} Qe7 {[%emt 0:02:02]} 28. Ra5 {[%emt 0:02:02]} Kb8 {[%emt 0:02:11]} 29. Qf3 {[%emt 0:00:54]} g6 {[%emt 0:06:19]} 30. Nc3 {[%emt 0:01:16]} R1d2 {[%emt 0:01:10]} 31. Ne4 {[%emt 0:00:35]} Rh2 {[%emt 0:00:41]} 32. h4 {[%emt 0:00:28]} f5 {[%emt 0:01:33]} 33. Nc5 {[%emt 0:01:21]} Rdd2 {[%emt 0:00:27]} 34. Na6+ {[%emt 0:00:50]} bxa6 {[%emt 0:01:21]} 0-1